[Event "43rd Indian-chT 2023-24"]
[Site "Dharamsala"]
[Date "2024.04.01"]
[Round "6.3"]
[White "Mukund Hemant Agarwal"]
[Black "Das, Sayantan"]
[Result "1-0"]
[ECO "C60"]
[WhiteElo "2005"]
[BlackElo "2502"]
[Annotator "TA"]
[PlyCount "79"]
[EventDate "2024.03.28"]
[EventType "team-tourn"]
[EventCountry "IND"]
[SourceTitle "playchess.com"]
[Source "ChessBase"]
[SourceQuality "1"]
[TimeControl "5400+30"]

{[%evp 18,79,29,25,34,33,52,50,105,57,53,45,31,58,20,58,89,83,146,12,126,122,124,115,114,116,119,118,183,171,256,260,226,103,130,155,146,115,80,95,103,90,114,118,561,564,754,660,675,660,652,626,611,573,657,647,658,696,810,687,772,770,862,862]} 1. e4 {[%emt 0:00:01]} e5 {[%emt 0:00:29]} 2. Nf3 {[%emt 0:00:06]} Nc6 {[%emt 0:00:06]} 3. Bb5 {[%emt 0:00:05]} a6 {[%emt 0:00:10]} 4. Ba4 {[%emt 0:00:02]} Nf6 {[%emt 0:00:08]} 5. O-O {[%emt 0:00:05]} d6 {[%emt 0:00:05]} 6. Re1 {[%emt 0:03:40]} Bd7 {[%emt 0:00:39]} 7. c3 {[%emt 0:01:15]} g6 {[%emt 0:00:26]} 8. h3 {[%emt 0:02:35]} Bg7 {[%emt 0:00:06]} 9. d4 {[%emt 0:00:27]} O-O {[%emt 0:00:13]} 10. Nbd2 {[%emt 0:01:04]} Nh5 {[%emt 0:18:28][%cal Re5d4]} 11. Nf1 {[%emt 0:01:45]} Qe8 {[%emt 0:00:18][%cal Oc6d4]} 12. Bc2 {[%emt 0:05:51]} f5 {[%emt 0:03:24]} (12... Qc8 $14) 13. exf5 {[%emt 0:13:24]} (13. dxe5 $16 {Black must now prevent e6.} dxe5 14. exf5 gxf5 15. Ng3 Nxg3 16. fxg3) 13... gxf5 $14 {[%emt 0:01:00]} 14. dxe5 {[%emt 0:13:25]} dxe5 {[%emt 0:00:12]} 15. Ng3 $1 {[%emt 0:00:24]} Nxg3 {[%emt 0:15:26]} 16. fxg3 {[%emt 0:00:16]} Qe7 {[%emt 0:02:34]} 17. Bg5 {[%emt 0:04:44]} Bf6 {[%emt 0:08:17]} ({Better is} 17... Qe8) 18. Bh6 {[%emt 0:16:11]} (18. Nxe5 $1 $16 Nxe5 19. Bxf6 Qc5+ 20. Qd4 Qxd4+ 21. cxd4 Rxf6 22. Rxe5 (22. dxe5 Rb6 $16)) 18... Rfe8 {[%emt 0:02:24] [#]} (18... Bg7 $1 $11 {remains equal.} 19. Bg5 Qc5+ 20. Kh1 Be6) 19. Ng5 $1 $36 {[%emt 0:03:20][%mdl 2560] White is really pushing. White is much more active.} Bxg5 {[%emt 0:17:04]} 20. Bxg5 {[%emt 0:00:08]} Qxg5 {[%emt 0:00:57]} 21. Qxd7 {[%emt 0:00:10]} e4 {[%emt 0:01:59]} 22. Rf1 {[%emt 0:14:33]} Re5 {[%emt 0:13:39]} (22... Rad8 $16 23. Qxf5 Qxf5 24. Rxf5 e3 25. Bb3+ Kh8) 23. Qxc7 $18 {[%emt 0:00:55]} Rf8 {[%emt 0:02:03]} (23... Qg7 $142 24. Bb3+ Kh8 25. Qxg7+ Kxg7) 24. Qxb7 {[%emt 0:08:18]} Ne7 {[%emt 0:00:36]} 25. Rae1 {[%emt 0:04:14]} (25. g4 $18 {and White stays clearly on top.}) 25... Qxg3 $16 {[%emt 0:01:44]} 26. Qxa6 {[%emt 0:05:14][%cal Oc2e4]} Ng6 {[%emt 0:02:59]} 27. Qc4+ {[%emt 0:00:01]} Kg7 {[%emt 0:00:50]} 28. Qd4 {[%emt 0:00:29]} Nh4 {[%emt 0:03:09]} 29. Re2 {[%emt 0:00:57]} ({But not} 29. Bxe4 $2 fxe4 30. Re2 Rxf1+ 31. Kxf1 Nf5 32. Qd7+ Re7 33. Qxf5 Rf7 $19) 29... Rfe8 {[%emt 0:02:27][%cal Bf8e8,Be8e5,Be5d5][%mdl 32] [#]} 30. Kh1 $1 {[%emt 0:00:42] Threatens to win with b4.} Ng6 $2 {[%emt 0:02:51][%mdl 8192] Loses the game.} (30... f4 $16 {is tougher.}) 31. Rxf5 $18 {[%emt 0:00:27][%cal Re2e4] White is clearly winning.} Kh6 {[%emt 0:00:41]} 32. Rxe5 {[%emt 0:00:09]} (32. Rxe4 $2 {is the wrong capture.} Rxf5 33. Qd2+ Kg7 34. Qd7+ Rf7 35. Qd4+ Kf8 36. Rxe8+ Kxe8 $19) 32... Rxe5 {[%emt 0:00:29]} 33. Qe3+ {[%emt 0:00:04]} Qxe3 {[%emt 0:00:36]} 34. Rxe3 {[%emt 0:00:03][%mdl 4096] Endgame. KRB-KRN} Rd5 {[%emt 0:00:06]} 35. Bxe4 {[%emt 0:00:58]} Re5 {[%emt 0:00:14]} 36. Kg1 {[%emt 0:00:16]} Nf4 {[%emt 0:00:13]} 37. Kf2 {[%emt 0:00:19]} Kg5 {[%emt 0:00:06]} 38. h4+ {[%emt 0:00:45]} Kf6 {[%emt 0:00:20]} 39. g3 {[%emt 0:00:29]} Ne6 {[%emt 0:00:08]} 40. Bxh7 {[%emt 0:00:15] Weighted Error Value: White=0.23 (precise) /Black=0.40.  Loses game:     	---       	Black=1      Mistake:       	White=3     	Black=5      Inaccurate:     	---       	Black=2      OK:         	White=11    	Black=4      Best:        	White=2     	Black=5      Strong:       	White=2     	---} 1-0

[Event "43rd Indian-chT 2023-24"]
[Site "Dharamsala"]
[Date "2024.04.01"]
[Round "6.4"]
[White "Gusain, Himal"]
[Black "Jihan Tejas Shah"]
[Result "1-0"]
[ECO "B31"]
[WhiteElo "2484"]
[BlackElo "2016"]
[Annotator "TA"]
[PlyCount "87"]
[EventDate "2024.03.28"]
[EventType "team-tourn"]
[EventCountry "IND"]
[SourceTitle "playchess.com"]
[Source "ChessBase"]
[SourceQuality "1"]
[TimeControl "5400+30"]

{[%evp 16,86,27,22,24,32,35,36,33,37,53,43,22,0,0,0,0,0,18,0,19,34,70,70,70,71,85,87,87,87,80,83,92,70,80,79,806,807,979,990,990,989,982,906,1387,994,29991,29992,29992,29993,29993,29993,29993,29994,29994,29993,29993,29992,29992,29993,29993,29994,29994,29995,29996,29996,29996,29997,29997,29998,29998,29999,29999]} 1. e4 {[%emt 0:01:22]} c5 {[%emt 0:00:07]} 2. Nf3 {[%emt 0:00:05]} Nc6 {[%emt 0:00:03]} 3. Bb5 {[%emt 0:00:13]} g6 {[%emt 0:00:06]} 4. Bxc6 {[%emt 0:00:08]} dxc6 {[%emt 0:00:03]} 5. d3 {[%emt 0:00:06]} Bg7 {[%emt 0:00:05]} 6. h3 {[%emt 0:00:19]} Nf6 {[%emt 0:00:15][%cal Bg8f6,Bf6d7,Bd7f8,Bf8e6][%mdl 32]} 7. Nc3 {[%emt 0:00:17]} Nd7 {[%emt 0:00:05]} 8. Be3 {[%emt 0:00:12]} e5 {[%emt 0:00:05]} 9. Qd2 {[%emt 0:00:06]} h6 {[%emt 0:00:03]} 10. O-O {[%emt 0:00:05]} b6 {[%emt 0:00:06]} 11. Nh2 {[%emt 0:00:19]} Nf8 {[%emt 0:00:08] White is slightly better.} 12. f4 {[%emt 0:00:07]} exf4 {[%emt 0:00:03]} 13. Bxf4 {[%emt 0:00:09]} Ne6 {[%emt 0:00:47]} 14. Bg3 {[%emt 0:02:25]} Qg5 {[%emt 0:01:40]} 15. Qe1 {[%emt 0:00:41]} Nd4 {[%emt 0:02:16]} 16. Nf3 {[%emt 0:04:21]} Nxf3+ {[%emt 0:03:24]} 17. Rxf3 {[%emt 0:00:13]} O-O {[%emt 0:04:32]} 18. e5 {[%emt 0:03:14]} Be6 {[%emt 0:07:23]} 19. Ne4 $36 {[%emt 0:01:24][%mdl 2048] White has some pressure.} Qd8 {[%emt 0:02:42]} 20. Kh1 {[%emt 0:13:09]} Qd4 {[%emt 0:07:03][%csl LRb2,LRe5]} 21. b3 {[%emt 0:00:10]} Qd7 {[%emt 0:02:20]} 22. Nf6+ {[%emt 0:02:48]} Bxf6 {[%emt 0:00:07]} 23. Rxf6 {[%emt 0:00:05]} Rae8 {[%emt 0:03:20]} 24. Qd2 {[%emt 0:03:39]} Kg7 {[%emt 0:01:00]} 25. Raf1 {[%emt 0:01:13] White is more active.} Bf5 $2 {[%emt 0:13:45][%mdl 8192] [#] Black cannot hold the game after this.} (25... Qd5 $16 26. Bf4 Rh8) 26. R1xf5 $1 $18 {[%emt 0:00:00][%mdl 512]} Qxf5 {[%emt 0:03:34]} (26... Re6 27. Rxe6) 27. Rxf5 {[%emt 0:00:15]} gxf5 {[%emt 0:00:03]} 28. Qf4 {[%emt 0:00:45]} Re6 {[%emt 0:04:39]} 29. Bh4 {[%emt 0:01:10]} Kg6 {[%emt 0:03:22]} 30. Bf6 {[%emt 0:00:15] [#] White threatens Qg3+ and mate.} Rfe8 {[%emt 0:00:55]} 31. Qg3+ {[%emt 0:00:26] White mates.} Kh5 {[%emt 0:00:12]} 32. Qg7 {[%emt 0:00:06][%cal Rg7f7]} Rxf6 {[%emt 0:04:28]} 33. Qxf6 {[%emt 0:00:15] KQ-KR} Rg8 {[%emt 0:03:41]} 34. Qxf7+ {[%emt 0:00:36]} Rg6 {[%emt 0:02:11]} 35. e6 {[%emt 0:00:17]} Kg5 {[%emt 0:00:26]} 36. h4+ {[%emt 0:00:16]} Kf4 {[%emt 0:01:54]} 37. Qxg6 {[%emt 0:00:31]} Ke3 {[%emt 0:00:07]} 38. e7 {[%emt 0:00:09]} Kd2 {[%emt 0:00:11]} 39. e8=Q {[%emt 0:00:07]} Kc1 {[%emt 0:00:03][%cal Bd2c1,Bc1b2,Bb2a3,Ba3a2][%mdl 32]} 40. Qe1+ {[%emt 0:00:08]} Kb2 {[%emt 0:00:17]} 41. Qf6+ {[%emt 0:00:08]} Ka3 {[%emt 0:00:20]} 42. Qfc3 {[%emt 0:00:15]} c4 {[%emt 0:00:12]} 43. Qc1+ {[%emt 0:00:07]} Kxa2 {[%emt 0:00:05]} 44. Q1a1# {[%emt 0:00:34] Weighted Error Value: White=0.05 (flawless) /Black=0.38.  Loses game:     	---       	Black=1      Inaccurate:     	---       	Black=1      OK:         	White=8     	Black=4      Best:        	White=1     	Black=1      Brilliant:      	White=1     	---} 1-0

[Event "43rd Indian-chT 2023-24"]
[Site "Dharamsala"]
[Date "2024.04.01"]
[Round "6.5"]
[White "Krishna C R G"]
[Black "Tiwari Shivansh"]
[Result "1/2-1/2"]
[ECO "E04"]
[WhiteElo "2445"]
[BlackElo "1973"]
[Annotator "TA"]
[PlyCount "72"]
[EventDate "2024.03.28"]
[EventType "team-tourn"]
[EventCountry "IND"]
[SourceTitle "playchess.com"]
[Source "ChessBase"]
[SourceQuality "1"]
[TimeControl "5400+30"]

{[%evp 13,72,22,21,12,0,16,4,19,9,0,0,0,0,0,0,-9,10,7,7,5,37,-14,0,-30,-31,-67,-29,-37,-29,-10,0,-21,-25,-13,-18,-12,-39,-67,-70,-83,-39,-16,-16,-25,0,0,0,0,0,0,0,0,0,0,0,-4,-6,-1,-1,-6,-3]} 1. d4 {[%emt 0:00:04]} d5 {[%emt 0:00:20]} 2. c4 {[%emt 0:00:19]} e6 {[%emt 0:00:05]} 3. Nf3 {[%emt 0:00:24]} Nf6 {[%emt 0:00:04][%cal Bg8f6,Bf6d5,Bd5c3][%mdl 32]} 4. g3 {[%emt 0:00:06]} dxc4 {[%emt 0:00:10]} 5. Bg2 {[%emt 0:00:34]} Nc6 {[%emt 0:00:06]} 6. Qa4 {[%emt 0:05:36]} Bb4+ {[%emt 0:00:05]} 7. Bd2 {[%emt 0:00:08]} Nd5 {[%emt 0:00:20]} 8. Qb5 {[%emt 0:00:23] Against Nb6} Bxd2+ {[%emt 0:10:02]} 9. Nbxd2 {[%emt 0:00:49]} c3 {[%emt 0:02:23]} 10. bxc3 {[%emt 0:00:03]} Nxc3 {[%emt 0:01:11]} 11. Qc4 {[%emt 0:02:33]} Nd5 {[%emt 0:00:27]} 12. O-O {[%emt 0:00:07]} O-O {[%emt 0:00:45]} 13. Rfc1 {[%emt 0:00:08]} Na5 {[%emt 0:06:28]} 14. Qc2 {[%emt 0:03:07]} c6 {[%emt 0:04:40]} 15. Ne5 {[%emt 0:03:49]} Ne7 {[%emt 0:09:05]} 16. e3 {[%emt 0:06:03]} b6 {[%emt 0:07:29]} 17. Ne4 {[%emt 0:36:03]} (17. Be4 $14) 17... h6 {[%emt 0:05:03]} 18. Qe2 {[%emt 0:08:03]} Bb7 {[%emt 0:03:08]} 19. Rd1 {[%emt 0:00:54]} Nd5 {[%emt 0:04:47]} 20. Rac1 {[%emt 0:00:34]} Rc8 {[%emt 0:01:19]} 21. g4 {[%emt 0:09:33]} Qe7 {[%emt 0:04:35]} 22. g5 {[%emt 0:03:16]} hxg5 {[%emt 0:07:49]} 23. Qh5 {[%emt 0:00:01]} Nf6 $1 {[%emt 0:08:07]} 24. Qxg5 {[%emt 0:00:02] [#] Qh4 would now be deadly.} Rfe8 {[%emt 0:01:41]} (24... c5 25. Nxf6+ Qxf6 26. Qxf6 gxf6 27. Nd7 $16) 25. Qf4 {[%emt 0:08:38]} Nxe4 {[%emt 0:01:28]} 26. Bxe4 {[%emt 0:00:02]} Qf6 {[%emt 0:04:49]} ({Of course not} 26... c5 $6 27. dxc5 Bd5 (27... Rxc5 $2 {too greedy.} 28. Rxc5 bxc5 29. Rd7 $18) 28. c6 $14) 27. Qxf6 $1 {[%emt 0:01:42]} gxf6 {[%emt 0:00:10]} 28. Nd7 {[%emt 0:00:08]} Kg7 {[%emt 0:00:55]} 29. Kh1 $1 {[%emt 0:00:07] [#] Threatening mate with Rg1+. The position is equal.} Rg8 $1 {[%emt 0:05:20]} ({And not} 29... f5 30. Rg1+ Kh6 31. Rg3 Kh5 32. Rcg1 Kh4 33. Ne5 fxe4 34. Rg4+ Kh5 35. R1g3 Rh8 36. Rh3#) 30. Rg1+ {[%emt 0:00:10]} Kh6 {[%emt 0:00:07]} 31. Rxg8 {[%emt 0:00:50]} Rxg8 {[%emt 0:00:04]} 32. Nxf6 {[%emt 0:00:04]} Rc8 {[%emt 0:01:22]} 33. Nd7 {[%emt 0:04:32]} (33. Rg1 $5 c5 $8 34. dxc5 $11) 33... c5 {[%emt 0:02:50]} 34. Bxb7 {[%emt 0:00:11]} Nxb7 {[%emt 0:00:06]} 35. dxc5 $1 {[%emt 0:00:04]} Nxc5 {[%emt 0:00:28]} 36. Rc4 {[%emt 0:01:08]} Rc7 {[%emt 0:00:38] Weighted Error Value: White=0.09 (flawless) /Black=0.07 (flawless) .  Mistake:       	White=1     	---        Inaccurate:     	White=3     	Black=3      OK:         	White=9     	Black=13     Best:        	White=3     	Black=1      Strong:       	White=3     	Black=2} 1/2-1/2

[Event "43rd Indian-chT 2023-24"]
[Site "Dharamsala"]
[Date "2024.04.01"]
[Round "6.6"]
[White "Gourav Nigam"]
[Black "Ghosh, Diptayan"]
[Result "0-1"]
[ECO "C60"]
[WhiteElo "1995"]
[BlackElo "2559"]
[Annotator "TA"]
[PlyCount "68"]
[EventDate "2024.03.28"]
[EventType "team-tourn"]
[EventCountry "IND"]
[SourceTitle "playchess.com"]
[Source "ChessBase"]
[SourceQuality "1"]
[TimeControl "5400+30"]

{[%evp 11,68,16,14,-12,2,1,2,-21,-12,-25,-29,-22,0,0,0,-47,-12,-40,-20,-39,-34,-35,-4,-3,0,-121,-119,-132,-130,-124,-129,-127,-126,-215,-212,-208,-181,-168,-172,-220,-222,-290,-287,-324,-278,-340,-331,-330,-279,-660,-679,-539,-289,-486,-453,-562,-550,-486,-313]} 1. e4 {[%emt 0:00:07]} e5 {[%emt 0:03:25]} 2. Nf3 {[%emt 0:00:30]} Nc6 {[%emt 0:00:05]} 3. Bb5 {[%emt 0:00:27]} Nge7 {[%emt 0:00:19]} 4. O-O {[%emt 0:03:40]} Ng6 {[%emt 0:01:09]} 5. d4 {[%emt 0:02:23]} exd4 {[%emt 0:01:19]} 6. Nxd4 {[%emt 0:00:21]} Bc5 {[%emt 0:01:08]} 7. c3 {[%emt 0:07:23]} O-O {[%emt 0:01:38]} 8. Be3 $1 {[%emt 0:00:38] Strongly threatening Nxc6.} Bb6 {[%emt 0:09:58]} 9. Nd2 {[%emt 0:06:30] The position is equal.} Nxd4 {[%emt 0:04:18]} 10. cxd4 {[%emt 0:00:26]} (10. Bxd4 {simplifies} Bxd4 11. cxd4 c6 12. Be2) 10... d5 {[%emt 0:00:13]} 11. exd5 {[%emt 0:05:02]} Qxd5 {[%emt 0:06:10]} 12. Bc4 {[%emt 0:01:26]} Qf5 {[%emt 0:00:17]} 13. Nb3 {[%emt 0:07:52]} (13. a4 $11 {is superior.} c6 14. a5) 13... Qf6 $40 {[%emt 0:04:36][%mdl 128] Black is up to no good.} 14. Qh5 {[%emt 0:07:58]} (14. Re1 {simplifies} Be6 15. Bxe6 Qxe6 16. Nc5) 14... Nf4 {[%emt 0:17:22]} (14... Be6 {simplifies} 15. Bxe6 Qxe6 16. Nc5 Bxc5 17. Qxc5 c6) 15. Bxf4 {[%emt 0:15:56]} (15. Qf3 {simplifies} Nh3+ 16. Kh1 Qxf3 17. gxf3 Rd8 18. Rad1) 15... Qxf4 {[%emt 0:00:07]} 16. Rfe1 {[%emt 0:00:19]} Be6 {[%emt 0:06:20]} (16... Bxd4 17. Nxd4 Bg4 (17... Qxd4 18. Qxf7+ Rxf7 19. Re8#) 18. Qe5 Qxe5 19. Rxe5 $18) 17. g3 {[%emt 0:07:51]} Qf6 {[%emt 0:03:16]} (17... Qg4 {simplifies} 18. Qxg4 Bxg4 19. Nc5 Rad8) 18. Bd3 {[%emt 0:02:28]} (18. Bxe6 $11 {remains equal.} fxe6 19. f4) 18... g6 $17 {[%emt 0:01:29] Black continues to play with concentration.} (18... Bxd4 19. Qxh7#) 19. Qe5 {[%emt 0:00:33]} Qxe5 {[%emt 0:01:08]} 20. dxe5 {[%emt 0:03:31]} Rad8 {[%emt 0:00:56]} 21. Rad1 {[%emt 0:01:43]} f6 {[%emt 0:08:05] Black is more active.} 22. Rd2 {[%emt 0:11:48]} (22. exf6 $17 Rxf6 23. Bc4 Bxf2+ 24. Kg2 Rxd1 25. Bxe6+ Rxe6 26. Rxe6) 22... fxe5 $19 {[%emt 0:09:42]} 23. Rxe5 {[%emt 0:01:02] [#]} Rxf2 $1 {[%emt 0:01:24][%mdl 512]} 24. Rxf2 {[%emt 0:00:57]} Bxb3 {[%emt 0:00:10]} 25. axb3 {[%emt 0:08:51]} ({Not} 25. Bxg6 $2 Rd2 (25... Bxf2+ 26. Kxf2 Bxa2 27. Bh5 $17) (25... hxg6 $2 26. axb3 Rd2 27. Re8+ Kg7 28. Re7+ Kh6 29. Ref7 $19) (25... Bxa2 26. Bc2 $17) 26. Bxh7+ (26. Re8+ $2 Kg7 $19) 26... Kxh7 $19) (25. Be4 $142 Bxa2 (25... Bxf2+ 26. Kxf2 Bxa2 27. Ra5 $17) 26. Kg2 Bxf2 27. Kxf2) 25... Rxd3 {[%emt 0:01:47][%mdl 4096] Endgame. KRR-KRB} 26. Re8+ {[%emt 0:01:20]} Kg7 {[%emt 0:00:01][%cal Od3d2]} 27. Re7+ {[%emt 0:00:13]} Kh6 {[%emt 0:00:13][%cal Od3d2] [#] aiming for ...Rd2!} 28. Kg2 {[%emt 0:00:59]} Bxf2 {[%emt 0:00:05]} 29. Kxf2 {[%emt 0:00:13]} Rxb3 {[%emt 0:00:16]} 30. Rxc7 $2 {[%emt 0:00:14]} (30. Re2) 30... Rxb2+ {[%emt 0:00:10] KR-KR} 31. Kf3 {[%emt 0:00:13]} g5 {[%emt 0:00:32][%cal Oa7a5] ...a5! would now be deadly.} ({Stronger than} 31... Rxh2 32. Rxb7 Ra2 33. Kg4 $11) 32. h3 $2 {[%emt 0:02:18]} (32. Rc5) 32... Kg6 {[%emt 0:00:23] Black is clearly winning.} 33. Rd7 {[%emt 0:00:23]} Rb3+ {[%emt 0:00:53]} 34. Kg2 {[%emt 0:00:17]} Rb6 {[%emt 0:00:55] Wards off Rd6+.   Weighted Error Value: White=0.51/Black=0.16 (very precise) .  Mistake:       	White=5     	---        Inaccurate:     	White=1     	Black=3      OK:         	White=4     	Black=11     Best:        	---       	Black=5      Strong:       	White=1     	---} 0-1

[Event "43rd Indian-chT 2023-24"]
[Site "Dharamsala"]
[Date "2024.04.01"]
[Round "6.7"]
[White "Visakh N R"]
[Black "Choubey Saurabh"]
[Result "1-0"]
[ECO "E11"]
[WhiteElo "2521"]
[BlackElo "2022"]
[Annotator "RC"]
[PlyCount "67"]
[EventDate "2024.03.28"]
[EventType "team-tourn"]
[EventCountry "IND"]
[SourceTitle "playchess.com"]
[Source "ChessBase"]
[SourceQuality "1"]
[TimeControl "5400+30"]

1. d4 {[%emt 0:00:03]} Nf6 {[%emt 0:00:26]} 2. Nf3 {[%emt 0:00:26]} e6 {[%emt 0:02:21]} 3. c4 {[%emt 0:00:09]} Bb4+ {[%emt 0:01:02]} 4. Bd2 {[%emt 0:01:29]} Bxd2+ {[%emt 0:00:55]} 5. Qxd2 {[%emt 0:00:24]} O-O {[%emt 0:00:11]} 6. Nc3 {[%emt 0:00:28]} d5 {[%emt 0:00:10]} 7. e3 {[%emt 0:00:39]} c6 {[%emt 0:02:22]} 8. Qc2 {[%emt 0:01:22]} a6 {[%emt 0:01:29]} 9. Bd3 {[%emt 0:04:00]} b5 {[%emt 0:00:28]} 10. c5 {[%emt 0:05:32]} Nbd7 {[%emt 0:00:59]} 11. O-O {[%emt 0:06:57]} b4 {[%emt 0:07:33]} 12. Ne2 {[%emt 0:06:16]} a5 {[%emt 0:02:00]} 13. a3 {[%emt 0:00:28]} bxa3 {[%emt 0:00:34]} 14. Rxa3 {[%emt 0:00:05]} Ba6 {[%emt 0:03:50]} 15. Nf4 {[%emt 0:00:14]} Qc7 {[%emt 0:06:27]} 16. Rfa1 {[%emt 0:06:19]} Rfb8 {[%emt 0:06:59]} 17. Qc3 {[%emt 0:03:05]} Bxd3 {[%emt 0:02:27]} 18. Nxd3 {[%emt 0:00:18]} Ne4 {[%emt 0:01:19]} 19. Qe1 {[%emt 0:01:17]} f6 {[%emt 0:09:20]} 20. Rxa5 {[%emt 0:07:51]} Rxa5 {[%emt 0:00:52]} 21. Qxa5 {[%emt 0:00:03]} Qb7 {[%emt 0:01:18]} 22. h3 {[%emt 0:06:11]} Kf7 {[%emt 0:01:12]} 23. Nfe1 {[%emt 0:09:41]} e5 {[%emt 0:00:46]} 24. Nc2 {[%emt 0:02:44]} exd4 {[%emt 0:01:46]} 25. exd4 {[%emt 0:01:47]} Ng5 {[%emt 0:03:10]} 26. Qa7 {[%emt 0:02:36]} Ne6 {[%emt 0:01:11]} 27. Ndb4 {[%emt 0:02:39]} Nd8 {[%emt 0:00:31]} 28. Qa6 {[%emt 0:02:29]} Qb5 {[%emt 0:01:40]} 29. Qxb5 {[%emt 0:03:21]} Rxb5 {[%emt 0:00:27]} 30. Ra7 {[%emt 0:00:05]} Ke8 {[%emt 0:01:10]} 31. Rc7 {[%emt 0:01:11]} Ke7 {[%emt 0:01:24]} 32. Nxc6+ {[%emt 0:01:35]} Nxc6 {[%emt 0:00:13]} 33. Rxc6 {[%emt 0:00:02]} Rxb2 {[%emt 0:00:22]} 34. Ne3 {[%emt 0:00:03]} 1-0

[Event "43rd Indian-chT 2023-24"]
[Site "Dharamsala"]
[Date "2024.04.01"]
[Round "6.8"]
[White "Devansh Singh"]
[Black "Neelash Saha"]
[Result "0-1"]
[ECO "C01"]
[WhiteElo "1815"]
[BlackElo "2463"]
[Annotator "TA"]
[PlyCount "84"]
[EventDate "2024.03.28"]
[EventType "team-tourn"]
[EventCountry "IND"]
[SourceTitle "playchess.com"]
[Source "ChessBase"]
[SourceQuality "1"]
[TimeControl "5400+30"]

{[%evp 9,84,19,23,16,15,6,24,0,-1,-6,0,-7,0,0,0,0,8,-8,0,0,31,30,214,209,194,186,186,0,0,0,172,192,149,190,535,514,556,286,264,40,77,-82,-89,-110,-95,-116,-122,-151,-156,-177,-170,-225,-224,-237,-228,-331,-333,-325,-316,-333,-345,-391,-384,-455,-418,-658,-653,-731,-730,-758,-704,-828,-863,-858,-834,-1210,-1196]} 1. e4 {[%emt 0:00:09]} e6 {[%emt 0:00:11]} 2. d4 {[%emt 0:00:03]} d5 {[%emt 0:00:05]} 3. Nc3 {[%emt 0:00:04]} Bb4 {[%emt 0:00:04]} 4. exd5 {[%emt 0:00:04]} exd5 {[%emt 0:00:05]} 5. Bd3 {[%emt 0:00:04]} c6 {[%emt 0:01:25]} 6. a3 {[%emt 0:00:23]} Bd6 {[%emt 0:00:42]} 7. Nge2 {[%emt 0:03:18]} Qc7 {[%emt 0:04:54][%cal Og8e7]} 8. Bg5 {[%emt 0:03:59] White has an edge.} h6 {[%emt 0:05:09]} 9. Bh4 {[%emt 0:01:55][%cal Of2f4]} Ne7 {[%emt 0:01:34]} 10. Bg3 {[%emt 0:02:44]} Nf5 {[%emt 0:00:31]} 11. Bxd6 {[%emt 0:03:29]} Nxd6 {[%emt 0:02:52]} 12. Ng3 {[%emt 0:03:48]} O-O {[%emt 0:00:38]} 13. O-O {[%emt 0:00:30]} f5 {[%emt 0:01:17]} 14. Qh5 {[%emt 0:17:31]} Qe7 {[%emt 0:12:21]} 15. Nce2 {[%emt 0:12:14]} (15. Rae1 {simplifies} Qf6 16. Nce2 Rf7 17. c3) 15... f4 $2 {[%emt 0:09:41] [#]} (15... Qg5 $11 {and Black has nothing to worry.}) 16. Qg6 $1 $18 {[%emt 0:06:14]} fxg3 {[%emt 0:05:50]} 17. Qh7+ {[%emt 0:02:21]} Kf7 {[%emt 0:00:04] White must now prevent ...gxh2+.} 18. Qg6+ {[%emt 0:00:01]} Kg8 {[%emt 0:00:06] aiming for ...gxh2+.} 19. Qh7+ {[%emt 0:07:24]} Kf7 {[%emt 0:00:04] And now ...gxh2+ would win.} 20. fxg3+ {[%emt 0:21:30]} Ke8 {[%emt 0:00:08] Hoping for ...Nd7.} 21. Nf4 $1 {[%emt 0:00:05]} Kd7 $2 {[%emt 0:20:16] [#]} ({Avoid the trap} 21... Bf5 $2 22. Bxf5 Qe3+ 23. Kh1 Nxf5 24. Rae1 $18) (21... Rxf4 {is tougher.} 22. Rxf4 (22. gxf4 Qf8 $11) 22... Kd7) 22. Rae1 $1 {[%emt 0:01:17]} Qd8 {[%emt 0:00:05]} 23. Qxg7+ {[%emt 0:08:42]} Rf7 {[%emt 0:00:04]} 24. Qg6 {[%emt 0:00:20]} (24. Qe5 $18 {Ne6 would now be deadly.} Qg5 25. Bg6) 24... Qf6 $14 {[%emt 0:08:46] [#]} 25. Qg8 $2 {[%emt 0:02:24]} (25. Re6 $1 $16 {[%cal Re6f6] keeps the pressure on.} Qxg6 26. Rxg6) 25... Qxd4+ $17 {[%emt 0:02:16] White is on the road to losing.} 26. Kh1 {[%emt 0:00:00]} Qg7 {[%emt 0:03:18]} (26... Qxb2 $2 {is the wrong capture.} 27. Bg6 Qg7 28. Bxf7 Qxg8 29. Bxg8 $18) 27. Qxg7 {[%emt 0:02:55]} Rxg7 {[%emt 0:00:51]} 28. Ne6 {[%emt 0:00:19]} Rf7 {[%emt 0:00:42]} 29. Nc5+ {[%emt 0:00:41]} Kd8 {[%emt 0:01:05]} 30. Rxf7 {[%emt 0:00:29]} (30. Rf4 {was worth a try.}) 30... Nxf7 $19 {[%emt 0:00:05]} 31. Bg6 {[%emt 0:00:10]} Nd6 {[%emt 0:00:09]} 32. Rf1 {[%emt 0:00:23]} (32. h3 $142) 32... b6 {[%emt 0:00:36]} 33. Nd3 {[%emt 0:00:04]} Nd7 {[%emt 0:00:16] Prevents Rf8+.} 34. Nf4 {[%emt 0:00:14]} Ne5 {[%emt 0:00:18]} 35. Bh5 {[%emt 0:00:11]} Ke7 {[%emt 0:00:55]} 36. h3 {[%emt 0:01:34]} Bf5 {[%emt 0:00:21]} 37. g4 {[%emt 0:00:07]} (37. c3 $142) 37... Bxc2 {[%emt 0:00:11] Black is clearly winning.} 38. Rf2 {[%emt 0:01:02]} Be4 {[%emt 0:00:08]} 39. Ne2 {[%emt 0:00:06]} Rf8 {[%emt 0:00:06]} 40. Nf4 {[%emt 0:00:26]} Nd3 {[%emt 0:00:11]} 41. Nxd3 {[%emt 0:00:07]} Bxd3 {[%emt 0:00:04]} 42. Rd2 {[%emt 0:00:14]} Ne4 {[%emt 0:00:09] Weighted Error Value: White=0.62/Black=0.29 (precise) .  Loses game:     	---       	Black=3      Missed win:     	White=1     	---        Mistake:       	White=4     	Black=1      Inaccurate:     	White=1     	Black=1      OK:         	White=8     	Black=14     Best:        	White=2     	Black=3      Strong:       	White=3     	---} 0-1